bitfinex/quotes_SOLUSD_20250413
["timestamp","ask_amount","ask_price","bid_price","bid_amount"]
[1744523758797,0.063,129.75,129.74,16.78124173]
[1744523759108,0.063,129.75,129.74,35.71521373]
[1744523773223,0.063,129.76,129.75,0.14216157]
[1744523773533,0.063,129.76,129.75,9.07354173]
[1744523774613,0.063,129.76,129.75,16.78064173]
[1744523776134,8.96138016,129.83,129.75,16.78064173]
[1744523776135,0.03,129.86,129.82,0.28432314]
[1744523776334,0.03,129.86,129.85,9.07354173]
[1744523777730,0.03,129.87,129.86,19.07613357]
[1744523777920,0.03,129.88,129.87,0.14216157]
[1744523778127,0.03,129.88,129.87,9.07354173]
[1744523778324,0.03,129.89,129.87,28.00751373]
[1744523778508,0.03,129.89,129.88,16.35354173]
[1744523779409,0.03,129.89,129.88,24.05294173]
[1744523780022,6.3386,129.96,129.9,0.14216157]
[1744523780430,6.3386,129.96,129.92,8.93138016]
[1744523780817,15.26998016,129.96,129.91,8.93138016]
[1744523781319,10.48618016,129.95,129.91,7.6976]
[1744523781724,1.5548,129.95,129.91,16.62898016]
[1744523782117,1.5548,129.95,129.91,26.9416]
[1744523782311,1.5548,129.95,129.92,8.93138016]
[1744523782723,6.3386,129.96,129.94,8.93138016]
[1744523782914,6.3386,129.96,129.91,35.87298016]
[1744523783119,8.93138016,129.95,129.91,7.6976]
[1744523783320,8.93138016,129.95,129.9,8.93138016]
[1744523783519,8.93138016,129.94,129.89,16.63018016]
[1744523784034,8.93138016,129.95,129.89,16.63018016]
[1744523784339,8.93138016,129.95,129.89,35.87718016]
[1744523784532,8.93138016,129.95,129.9,8.93138016]
[1744523786236,8.93138016,129.95,129.91,7.6976]
[1744523786711,15.26998016,129.96,129.91,16.62898016]
[1744523787436,8.93138016,129.95,129.91,7.6976]
[1744523789028,8.93138016,129.94,129.91,7.6976]
[1744523789223,8.93138016,129.93,129.91,7.6976]
[1744523789537,8.93138016,129.94,129.91,7.6976]
[1744523790136,8.93138016,129.94,129.9,7.6982]
[1744523791932,8.93138016,129.93,129.89,7.6986]
[1744523792131,8.93138016,129.92,129.89,7.6986]
[1744523793842,8.93138016,129.92,129.88,14.9592]
[1744523794024,6.3386,129.96,129.88,14.9592]
[1744523794025,10.50118016,129.91,129.88,14.9592]
[1744523796343,1.5698,129.91,129.88,14.9592]
[1744523798047,10.50118016,129.94,129.89,8.93138016]
[1744523798438,8.93138016,129.93,129.88,23.89058016]
[1744523799439,8.93138016,129.93,129.88,14.9592]
[1744523803443,8.93138016,129.93,129.88,23.89058016]
[1744523804851,10.50118016,129.94,129.88,23.89058016]
[1744523806346,8.93138016,129.93,129.88,23.89058016]
[1744523809650,8.93138016,129.92,129.88,14.9592]
[1744523809852,8.93138016,129.92,129.88,7.6992]
[1744523810052,1.5698,129.94,129.89,8.93138016]
[1744523810232,10.50118016,129.94,129.89,8.93138016]
[1744523811055,10.50118016,129.94,129.88,16.63058016]
[1744523811255,8.93138016,129.93,129.88,16.63058016]
[1744523813054,8.93138016,129.92,129.88,7.6992]
[1744523813858,8.93138016,129.93,129.88,16.63058016]
[1744523816057,10.50118016,129.94,129.89,8.93138016]
[1744523817463,18.19698016,129.94,129.89,8.93138016]
[1744523817649,10.50118016,129.94,129.89,8.93138016]
[1744523817855,8.93138016,129.95,129.9,8.93138016]
[1744523818052,8.93138016,129.96,129.92,7.697]
[1744523818961,8.93138016,129.97,129.92,7.697]
[1744523819164,8.93138016,129.97,129.92,16.62838016]
[1744523819343,91.57028016,129.98,129.93,8.93138016]
[1744523819940,0.03,129.99,129.94,8.93138016]
[1744523820257,0.03,129.99,129.96,16.62598016]
[1744523820450,0.03,129.99,129.96,7.6946]
[1744523821558,0.03,129.99,129.95,8.93138016]
[1744523822058,0.03,129.99,129.96,8.93138016]
[1744523822256,0.03,129.99,129.95,9.07354173]
[1744523822760,0.03,129.99,129.96,8.93138016]
[1744523823438,0.03,129.99,129.97,7.694]
[1744523823644,8.93138016,129.98,129.9,16.69088016]
[1744523823964,8.93138016,129.95,129.9,16.69088016]
[1744523824564,8.93138016,129.93,129.88,8.93138016]
[1744523824865,8.93138016,129.89,129.85,7.7011]
[1744523825160,8.93138016,129.87,129.84,12.05736838]
[1744523825353,8.93138016,129.89,129.84,19.75906838]
[1744523825541,8.93138016,129.87,129.84,19.75906838]
[1744523825873,8.93138016,129.87,129.84,12.05736838]
[1744523826238,8.93138016,129.87,129.83,7.7021]
[1744523826470,8.93138016,129.87,129.82,23.93708016]
[1744523827363,13.91345701,129.87,129.82,28.91915701]
[1744523829969,13.91345701,129.84,129.82,0.063]
[1744523830271,13.91345701,129.83,129.82,0.063]
[1744523832069,13.91345701,129.86,129.82,0.063]
[1744523832247,13.91345701,129.83,129.82,0.063]
[1744523833382,21.61575701,129.83,129.82,0.063]
[1744523833769,13.91345701,129.83,129.82,0.063]
[1744523842159,21.61575701,129.83,129.82,0.063]
[1744523843080,13.91345701,129.83,129.82,0.063]
[1744523843783,81.0,129.87,129.82,13.97645701]
[1744523844081,6.4305,129.9,129.84,21.61495701]
[1744523844082,13.91345701,129.89,129.84,21.61495701]
[1744523844487,13.91345701,129.9,129.85,13.91345701]
[1744523844779,81.0,129.91,129.87,13.91345701]
[1744523845384,81.0,129.91,129.86,13.91345701]
[1744523845687,81.0,129.91,129.87,7.7]
[1744523847291,94.91345701,129.91,129.87,7.7]
[1744523850286,102.61105701,129.91,129.86,21.61375701]
[1744523850895,13.91345701,129.9,129.86,7.7003]
[1744523852164,13.91345701,129.89,129.83,7.26]
[1744523852478,13.91345701,129.88,129.83,28.87535701]
[1744523852662,13.91345701,129.89,129.84,13.91345701]
[1744523855085,13.91345701,129.9,129.85,13.91345701]
[1744523856069,94.91345701,129.91,129.86,13.91345701]
[1744523856567,94.91345701,129.91,129.87,7.7]
[1744523857693,13.91345701,129.89,129.85,7.7011]
[1744523858594,13.91345701,129.88,129.85,7.7011]
[1744523859392,13.91345701,129.88,129.84,7.7015]
[1744523860972,13.91345701,129.89,129.84,7.7015]
[1744523862300,21.61225701,129.89,129.84,7.7015]
[1744523863274,16.60159445,129.89,129.84,7.7015]
[1744523864003,8.90279445,129.89,129.84,16.60429445]
[1744523864171,8.90279445,129.9,129.84,16.60429445]
[1744523864376,8.90279445,129.9,129.85,8.90279445]
[1744523864791,81.0,129.91,129.87,8.90279445]
[1744523865098,8.90279445,129.93,129.88,8.90279445]
[1744523865588,8.90279445,129.95,129.9,8.90279445]
[1744523866087,8.90279445,129.95,129.9,16.60039445]
[1744523866291,8.93279445,129.96,129.91,8.90279445]
[1744523867295,13.92546873,129.96,129.91,13.89546873]
[1744523867593,13.89546873,129.92,129.89,7.6988]
[1744523867989,13.89546873,129.93,129.89,7.6988]
[1744523869096,13.89546873,129.92,129.88,16.5868]
[1744523871691,13.89546873,129.93,129.88,30.48226873]
[1744523871997,13.89546873,129.93,129.88,16.5868]
[1744523872881,7.7247,129.96,129.9,13.89546873]
[1744523873187,13.89546873,129.95,129.91,7.6976]
[1744523879496,13.89546873,129.94,129.9,7.698]
[1744523880813,21.59136873,129.94,129.89,7.6987]
[1744523881000,21.59136873,129.94,129.88,16.5868]
[1744523881001,13.89546873,129.91,129.88,16.5868]
[1744523881314,13.89546873,129.91,129.88,8.8877]
[1744523881613,13.89546873,129.91,129.88,7.24]
[1744523882320,7.6959,129.94,129.88,28.83466873]
[1744523882489,13.89546873,129.92,129.88,7.24]
[1744523882694,13.89546873,129.9,129.85,0.14216157]
[1744523882905,13.89546873,129.9,129.86,7.7003]
[1744523883218,13.89546873,129.91,129.86,21.59576873]
[1744523886594,21.59256873,129.92,129.86,21.59576873]
[1744523887118,13.89546873,129.94,129.89,13.89546873]
[1744523887311,8.89501241,129.94,129.89,8.89501241]
[1744523887507,16.59021241,129.95,129.9,10.49151241]
[1744523887711,8.89501241,129.95,129.9,10.49151241]
[1744523888019,8.89501241,129.95,129.91,7.6976]
[1744523888918,7.7247,129.96,129.91,7.6976]
[1744523889323,13.89674865,129.95,129.91,7.6976]
[1744523889500,7.7247,129.96,129.91,7.6976]
[1744523889818,13.89674865,129.95,129.91,7.6976]
[1744523890519,21.62144865,129.96,129.91,7.6976]
[1744523891917,13.89674865,129.95,129.91,7.6976]
[1744523892618,0.03,129.96,129.94,13.89674865]
[1744523892832,0.03,129.96,129.92,14.03891022]
[1744523894310,0.03,129.96,129.92,13.89674865]
[1744523894506,13.92674865,129.96,129.93,7.6964]
[1744523894703,13.89674865,129.95,129.92,26.0]
[1744523895114,13.92674865,129.96,129.92,26.0]
[1744523896003,13.92674865,129.96,129.91,21.59434865]
[1744523896423,13.89674865,129.95,129.91,7.6976]
[1744523898530,13.92674865,129.96,129.91,21.59434865]
[1744523900217,0.03,129.96,129.91,21.59434865]
[1744523901213,13.92674865,129.96,129.91,21.59434865]
[1744523902929,13.89674865,129.95,129.91,7.6976]
[1744523904130,13.92674865,129.96,129.91,7.6976]
[1744523904702,13.89674865,129.95,129.91,7.6976]
[1744523904906,13.89674865,129.94,129.91,7.6976]
[1744523905106,13.89674865,129.95,129.91,7.6976]
[1744523905515,13.92674865,129.96,129.91,21.59434865]
[1744523906135,0.03,129.96,129.92,13.89674865]
[1744523906432,0.03,129.96,129.93,7.6964]
[1744523909439,0.03,129.96,129.92,8.89124452]
[1744523910848,0.03,129.96,129.93,7.6964]
[1744523914742,0.03,129.96,129.91,0.14216157]
[1744523915056,0.03,129.96,129.92,8.89124452]
[1744523916147,0.03,129.96,129.93,7.6964]
[1744523917017,8.89124452,129.95,129.9,8.89124452]
[1744523917420,8.89124452,129.95,129.9,16.58944452]
[1744523917647,8.89124452,129.95,129.9,7.6982]
[1744523918546,16.58644452,129.95,129.9,7.6982]
[1744523919947,8.89124452,129.95,129.9,16.58944452]
[1744523921528,8.92124452,129.96,129.9,16.58944452]
[1744523922751,16.61604452,129.96,129.9,16.58944452]
[1744523923227,8.89124452,129.95,129.9,16.58944452]
[1744523923429,8.89124452,129.91,129.85,19.27736838]
[1744523923743,8.89124452,129.89,129.85,26.97826838]
[1744523924248,8.89124452,129.87,129.85,12.05736838]
[1744523924460,8.89124452,129.86,129.85,12.05736838]
[1744523924963,16.59184452,129.86,129.85,12.05736838]
[1744523926358,8.89124452,129.86,129.85,12.05736838]
[1744523926653,8.89124452,129.87,129.85,12.05736838]
[1744523926855,34.89124452,129.89,129.84,8.89124452]
[1744523927453,8.89124452,129.88,129.83,8.95424452]
[1744523928323,8.89124452,129.88,129.83,16.65654452]
[1744523928724,8.89124452,129.88,129.83,7.7653]
[1744523929250,13.9132722,129.88,129.83,7.7653]
[1744523931354,13.9132722,129.87,129.83,7.7653]
[1744523931950,13.9132722,129.88,129.83,21.6785722]
[1744523934356,13.9132722,129.88,129.83,7.7653]
[1744523934558,13.9132722,129.88,129.83,21.6785722]
[1744523935054,13.9132722,129.88,129.83,7.7653]
[1744523935257,13.9132722,129.88,129.83,21.6785722]
[1744523936357,7.699,129.89,129.83,21.6785722]
[1744523936652,13.9132722,129.88,129.83,21.6785722]
[1744523940140,13.9132722,129.9,129.85,13.9132722]
[1744523940540,7.6981,129.91,129.85,13.9132722]
[1744523940742,21.6113722,129.91,129.85,13.9132722]
[1744523940945,13.9132722,129.9,129.85,13.9132722]
[1744523942064,13.9132722,129.9,129.86,7.7006]
[1744523942565,1.6155,129.94,129.87,13.9132722]
[1744523942738,13.9132722,129.93,129.88,13.9132722]
[1744523943572,13.9132722,129.95,129.9,13.9132722]
[1744523943866,81.03,129.96,129.91,13.9132722]
[1744523944169,102.6379722,129.96,129.91,21.6108722]
[1744523944372,13.9132722,129.93,129.88,15.64953377]
[1744523945150,13.9132722,129.94,129.89,21.6118722]
[1744523948064,13.9132722,129.9,129.84,8.1127]
[1744523948364,13.9132722,129.89,129.85,7.7011]
[1744523949277,13.9132722,129.89,129.84,15.8142]
[1744523950273,21.6120722,129.89,129.84,15.8142]
[1744523950448,13.9132722,129.89,129.84,15.8142]
[1744523951163,13.9132722,129.87,129.83,7.7651]
[1744523951368,8.90482011,129.87,129.83,7.7651]
[1744523951551,8.90482011,129.88,129.83,16.66992011]
[1744523951765,8.90482011,129.89,129.84,8.90482011]
[1744523952071,8.90482011,129.89,129.84,16.60612011]
[1744523952247,16.60362011,129.89,129.84,16.60612011]
[1744523953774,8.90482011,129.89,129.84,16.60612011]
[1744523955354,8.90482011,129.88,129.84,7.7013]
[1744523958653,8.90482011,129.89,129.84,16.60612011]
[1744523962279,16.60372011,129.89,129.84,16.60612011]
[1744523962450,8.90482011,129.88,129.84,7.7013]
[1744523967686,8.90482011,129.89,129.84,8.90482011]
[1744523969986,8.90482011,129.89,129.85,7.7011]
[1744523971290,8.90482011,129.88,129.85,7.7011]
[1744523972269,8.90482011,129.89,129.85,7.7011]
[1744523972668,81.0,129.92,129.86,8.90482011]
[1744523972875,8.90482011,129.92,129.87,8.90482011]
[1744523973789,8.90482011,129.92,129.88,7.6994]
[1744523976297,8.90482011,129.91,129.88,7.6994]
[1744523979600,8.90482011,129.91,129.87,7.7]
[1744523986308,8.90482011,129.88,129.85,1.5762]
[1744523986508,8.90482011,129.87,129.83,0.063]
[1744523987307,8.90482011,129.87,129.84,7.7014]
[1744523987484,8.90482011,129.87,129.83,7.7653]
[1744523988004,8.90482011,129.88,129.83,16.67012011]
[1744523988479,8.90482011,129.89,129.84,8.90482011]
[1744523989017,8.90482011,129.9,129.85,8.90482011]
[1744523989376,97.60202011,129.92,129.87,8.90482011]
[1744523989588,97.60202011,129.92,129.87,16.60422011]
[1744523991596,8.90482011,129.91,129.86,16.60542011]
[1744523994189,8.90482011,129.9,129.86,7.7006]
[1744523997286,8.90482011,129.89,129.85,9.3311]
[1744524003513,8.90482011,129.9,129.85,9.3311]
[1744524004394,8.90482011,129.88,129.84,7.7015]
[1744524005002,8.90482011,129.86,129.83,0.063]
[1744524005314,7.6983,129.9,129.83,0.063]
[1744524005315,8.90482011,129.85,129.83,0.063]
[1744524005820,8.90482011,129.87,129.83,7.7652]
[1744524006318,8.90482011,129.88,129.83,16.67002011]
[1744524006707,8.90482011,129.89,129.84,8.90482011]
[1744524008036,88.6971,129.92,129.86,8.90482011]
[1744524008213,89.90482011,129.92,129.87,8.90482011]
[1744524008435,89.90482011,129.92,129.87,16.60432011]
[1744524008621,89.90482011,129.92,129.87,7.6995]
[1744524008822,8.90482011,129.91,129.87,7.6995]
[1744524011030,8.90482011,129.89,129.84,6.6121]
[1744524011201,8.90482011,129.85,129.83,0.063]
[1744524012420,8.90482011,129.87,129.83,0.063]
[1744524012939,88.6991,129.89,129.83,7.7652]
[1744524013130,8.90482011,129.87,129.83,7.7652]
[1744524013820,8.90482011,129.88,129.83,7.7652]
[1744524014326,16.60432011,129.88,129.83,7.7652]
[1744524014506,8.90482011,129.88,129.83,7.7652]
[1744524015542,16.60422011,129.88,129.83,7.7652]
[1744524015749,8.90482011,129.86,129.83,0.063]
[1744524017127,8.90482011,129.87,129.83,0.063]
[1744524017506,8.90482011,129.88,129.83,8.96782011]
[1744524017821,89.90482011,129.89,129.84,8.90482011]
[1744524018022,8.90482011,129.89,129.84,8.90482011]
[1744524018631,8.90482011,129.89,129.85,7.7011]
[1744524021037,8.90482011,129.88,129.85,7.7011]
[1744524025341,7.6982,129.9,129.85,7.7011]
[1744524025644,8.90482011,129.88,129.85,7.7011]
[1744524026236,8.90482011,129.88,129.84,7.7017]
[1744524028043,7.6975,129.92,129.85,8.90482011]
[1744524028245,8.90482011,129.91,129.86,16.60542011]
[1744524028943,16.60232011,129.92,129.86,16.60542011]
[1744524029347,8.90482011,129.9,129.85,8.90482011]
[1744524029536,8.90482011,129.9,129.84,35.86092011]
[1744524031343,16.60312011,129.9,129.84,35.86092011]
[1744524031553,16.60312011,129.9,129.84,7.7017]
[1744524031719,8.90482011,129.88,129.84,7.7017]
[1744524032042,8.90482011,129.89,129.84,7.7017]
[1744524034323,8.90482011,129.9,129.84,16.60652011]
[1744524034524,0.03,129.96,129.87,9.04698168]
[1744524034746,7.7247,129.96,129.91,8.90482011]
[1744524034926,0.03,129.96,129.93,7.6964]
[1744524035121,0.03,129.96,129.93,16.60122011]
[1744524036014,0.03,129.96,129.92,16.60162011]
[1744524036747,0.03,129.96,129.93,8.90482011]
[1744524036950,0.03,129.96,129.92,16.60162011]
[1744524037249,0.03,129.96,129.92,7.6968]
[1744524037425,0.03,129.96,129.93,13.89174372]
[1744524038148,0.03,129.96,129.94,13.89174372]
[1744524039152,0.03,129.96,129.95,7.6952]
[1744524040848,0.03,129.96,129.94,21.58734372]
[1744524041045,0.03,129.96,129.93,14.8762]
[1744524042878,0.03,129.96,129.93,7.18]
[1744524043158,0.03,129.96,129.88,9.2232]
[1744524043159,13.89174372,129.94,129.88,9.2232]
[1744524043360,13.89174372,129.94,129.86,7.18]
[1744524043361,13.89174372,129.9,129.86,7.18]
[1744524043561,13.89174372,129.9,129.86,14.8804]
[1744524044377,21.59004372,129.9,129.86,7.18]
[1744524044556,13.89174372,129.9,129.86,14.8805]
[1744524044957,13.89174372,129.93,129.88,13.89174372]
[1744524046284,13.89174372,129.91,129.86,7.18]
[1744524046468,13.89174372,129.91,129.86,21.07174372]
[1744524046780,21.58764372,129.94,129.89,13.89174372]
[1744524047082,81.0,129.95,129.9,13.89174372]
[1744524047083,102.58714372,129.95,129.9,13.89174372]
[1744524047806,81.0,129.95,129.89,13.89174372]
[1744524047988,13.92174372,129.97,129.92,13.89174372]
[1744524048185,0.03,129.97,129.93,13.89174372]
[1744524048380,0.03,129.97,129.95,13.89174372]
[1744524048568,0.03,129.97,129.95,14.03390529]
[1744524049277,0.03,129.97,129.95,32.96787729]
[1744524049583,0.03,129.97,129.95,34.49277729]
[1744524050288,0.03,129.97,129.95,42.18797729]
[1744524050696,0.03,129.97,129.95,23.25400529]
[1744524050863,0.03,129.97,129.95,23.11184372]
[1744524054091,0.03,129.97,129.95,42.18797729]
[1744524054986,0.03,129.97,129.95,45.99428968]
[1744524057066,0.0001,129.96,129.95,45.99428968]
[1744524057238,0.0001,129.96,129.95,52.46378968]
[1744524064368,0.0001,129.96,129.95,52.17946654]
[1744524064670,0.0001,129.96,129.95,21.72910529]
[1744524064859,0.0001,129.96,129.95,40.52091572]
[1744524065168,0.0001,129.96,129.95,40.66307729]
[1744524067366,0.0001,129.96,129.95,47.84307729]
[1744524067869,0.0001,129.96,129.95,51.72407167]
[1744524071978,0.0001,129.96,129.95,7.18]
[1744524072676,0.0001,129.96,129.95,28.90910529]
[1744524073293,0.0001,129.96,129.95,47.55875415]
[1744524073575,0.0001,129.96,129.95,47.84307729]
[1744524074480,0.0001,129.96,129.95,51.73436746]
[1744524079688,0.03,129.98,129.95,51.73436746]
[1744524079689,0.03,129.98,129.97,44.79181043]
[1744524079859,0.03,129.98,129.97,58.68355415]
[1744524080381,0.03,129.98,129.97,26.14216157]
[1744524080686,0.03,129.98,129.97,40.03390529]
[1744524080869,0.03,129.98,129.97,26.0]
[1744524081987,0.03,129.98,129.97,33.694]
[1744524082485,0.03,129.98,129.97,47.58574372]
[1744524083579,0.03,129.98,129.97,33.694]
[1744524085763,0.03,129.98,129.97,42.57930377]
[1744524086286,0.03,129.98,129.97,33.694]
[1744524088488,0.03,129.98,129.97,42.57930377]
[1744524090087,0.03,129.98,129.97,42.72146534]
[1744524090386,0.03,129.98,129.97,61.65543734]
[1744524091390,0.03,129.98,129.97,33.83616157]
[1744524091578,0.03,129.98,129.97,42.72146534]
[1744524091964,0.03,129.98,129.97,33.83616157]
[1744524092280,0.03,129.98,129.97,33.694]
[1744524095394,0.03,129.98,129.97,42.57930377]
[1744524097196,0.03,129.98,129.97,42.72146534]
[1744524097688,0.03,130.01,130.0,26.14216157]
[1744524097891,0.03,130.02,130.01,53.81927577]
[1744524098186,0.03,130.04,130.01,53.96143734]
[1744524098380,0.03,130.04,130.03,18.933972]
[1744524098584,0.03,130.04,130.03,27.81927577]
[1744524099286,0.03,130.04,130.03,35.50977577]
[1744524100485,0.0001,130.04,130.03,35.65193734]
[1744524101373,0.0001,130.04,130.03,40.63059261]
[1744524102875,0.0001,130.04,130.03,21.69662061]
[1744524104692,0.0001,130.04,130.03,7.6905]
[1744524104892,0.0001,130.04,130.02,7.6909]
[1744524105097,13.86395904,130.03,130.0,7.16]
[1744524105276,13.86395904,130.01,129.98,12.05736838]
[1744524105593,13.86395904,130.01,129.97,12.05736838]
[1744524106199,13.86395904,130.01,129.98,7.6934]
[1744524108395,13.86395904,130.02,129.98,7.6934]
[1744524109286,13.86395904,130.03,129.98,7.6934]
[1744524109490,13.86395904,130.03,129.98,21.55735904]
[1744524109683,13.86395904,130.01,129.97,7.6938]
[1744524110515,13.86395904,130.02,129.97,21.55775904]
[1744524114308,13.86395904,130.03,129.98,13.86395904]
[1744524115213,13.86395904,130.03,129.98,21.55695904]
[1744524116701,13.86395904,130.02,129.98,7.693]
[1744524120399,0.0001,130.04,129.99,13.86395904]
[1744524120591,13.86395904,130.02,129.98,7.693]
[1744524121332,8.88472082,130.02,129.98,7.693]
[1744524123133,7.69,130.04,129.98,7.693]
[1744524123320,8.88472082,130.03,129.98,16.57772082]
[1744524123727,7.69,130.04,129.98,16.57772082]
[1744524123728,8.88482082,130.04,129.99,8.88472082]
[1744524124425,0.0001,130.04,130.0,8.88472082]
[1744524125224,0.0001,130.04,130.01,7.6917]
[1744524125531,0.0001,130.04,130.02,8.88472082]
[1744524126021,0.0001,130.04,130.03,8.88472082]
[1744524127824,0.0001,130.04,130.03,7.6905]
[1744524128043,0.0001,130.04,130.01,14.8514]
[1744524128321,8.88472082,130.03,130.01,7.16]
[1744524128619,8.88472082,130.02,130.01,7.16]
[1744524129616,8.88472082,130.03,130.01,7.16]
[1744524131400,13.8801167,130.03,130.01,7.16]
[1744524134527,13.8801167,130.03,130.0,7.6922]
[1744524134839,13.8801167,130.01,129.98,7.14]
[1744524135012,13.8801167,130.0,129.98,7.14]
[1744524135218,13.8801167,130.01,129.98,7.14]
[1744524135614,13.8801167,130.02,129.98,7.14]
[1744524136024,13.8801167,130.02,129.98,14.8333]
[1744524137344,21.5712167,130.02,129.98,14.8333]
[1744524140211,13.8801167,130.02,129.98,14.8333]
[1744524140411,13.8801167,130.02,129.98,7.6933]
[1744524141335,21.5712167,130.02,129.98,7.6933]
[1744524144319,13.8801167,130.02,129.98,7.6933]
[1744524145139,0.0001,130.04,129.98,7.6933]
[1744524145337,13.8802167,130.04,129.99,13.8801167]
[1744524146231,21.5702167,130.04,129.99,21.5726167]
[1744524147244,13.8801167,130.03,129.96,26.3752]
[1744524147537,7.6901,130.04,129.97,21.5739167]
[1744524147538,13.8801167,130.02,129.97,21.5739167]
[1744524147841,0.0001,130.04,129.99,13.8801167]
[1744524148059,0.0001,130.04,130.01,13.8801167]
[1744524148418,0.0001,130.04,130.02,7.6911]
[1744524150423,0.0001,130.04,130.01,7.6917]
[1744524153739,0.0001,130.04,130.02,9.02194391]
[1744524154550,0.0001,130.04,130.02,8.87978234]
[1744524157243,0.0001,130.04,130.03,8.87978234]
[1744524158138,0.0001,130.04,130.03,16.57028234]
[1744524158553,0.0001,130.04,130.03,7.6905]
[1744524158849,0.0001,130.04,130.03,16.57028234]
[1744524163646,0.0001,130.04,130.03,35.64641591]
[1744524165425,0.0001,130.05,130.04,0.14216157]
[1744524165750,0.0001,130.05,130.04,15.49504391]
[1744524167240,0.0001,130.05,130.03,16.57028234]
[1744524167425,0.0001,130.05,130.03,7.6905]
[1744524167627,0.0001,130.05,130.03,16.57028234]
[1744524169138,0.0001,130.05,130.02,7.6909]
[1744524174667,0.0001,130.05,130.01,16.57118234]
[1744524174833,8.87988234,130.05,130.01,7.6914]
[1744524177859,8.87978234,130.02,129.95,19.2367]
[1744524178034,8.87978234,130.01,129.96,9.02194391]
[1744524179162,8.87978234,130.01,129.96,16.71654391]
[1744524180567,8.87978234,129.99,129.94,44.4251514]
[1744524180739,7.6918,130.01,129.96,8.87978234]
[1744524181059,8.87978234,130.01,129.96,16.57408234]
[1744524181357,8.87978234,130.0,129.96,16.57408234]
[1744524181954,8.87978234,130.0,129.96,7.6943]
[1744524182273,8.87978234,129.97,129.94,35.54536906]
[1744524182438,8.87978234,129.97,129.94,43.24116906]
[1744524182638,8.87978234,129.98,129.94,43.24116906]
[1744524183037,8.87978234,129.95,129.92,0.063]
[1744524183354,8.87978234,129.94,129.92,0.063]
[1744524184056,8.87978234,129.93,129.92,0.063]
[1744524184238,8.87978234,129.94,129.92,0.063]
[1744524184439,10.46978234,129.93,129.92,0.063]
[1744524185257,29.1194312,129.93,129.92,0.063]
[1744524185443,29.40375434,129.93,129.92,0.063]
[1744524186136,37.10015434,129.93,129.92,0.063]
[1744524186841,72.76144527,129.93,129.92,0.063]
[1744524187462,56.18510369,129.93,129.92,0.063]
[1744524187776,0.14216157,129.92,129.91,0.063]
[1744524188083,108.96473169,129.92,129.91,0.063]
[1744524188249,44.64964886,129.89,129.88,0.063]
[1744524188451,67.14461863,129.89,129.88,0.063]
[1744524188650,0.14216157,129.88,129.84,0.063]
[1744524188950,13.91128506,129.86,129.84,0.063]
[1744524190375,21.61188506,129.86,129.84,0.063]
[1744524191469,100.07613357,129.85,129.84,0.063]
[1744524191672,20.591872,129.84,129.82,0.063]
[1744524191875,48.55660369,129.84,129.82,0.063]
[1744524192253,56.25830369,129.84,129.82,0.063]
[1744524192466,25.433272,129.83,129.82,0.063]
[1744524192659,39.34455706,129.83,129.82,0.063]
[1744524193377,26.0,129.8,129.79,0.063]
[1744524193673,58.84525706,129.8,129.79,0.063]
[1744524195371,66.54935706,129.8,129.79,0.063]
[1744524196274,66.54935706,129.8,129.77,0.063]
[1744524196275,0.14216157,129.79,129.77,0.063]
[1744524196482,34.39465706,129.78,129.77,0.063]
[1744524197476,42.09995706,129.78,129.77,0.063]
[1744524197687,42.24211863,129.78,129.77,0.063]
[1744524198274,42.09995706,129.78,129.77,0.063]
[1744524199382,42.24211863,129.78,129.77,0.063]
[1744524200969,42.09995706,129.78,129.77,0.063]
[1744524201471,13.91128506,129.78,129.77,0.063]
[1744524201859,81.0,129.79,129.77,0.063]
[1744524202469,13.91128506,129.81,129.77,0.063]
[1744524202672,13.91128506,129.84,129.79,13.91128506]
[1744524203153,13.91128506,129.84,129.79,21.61598506]
[1744524204780,13.91128506,129.84,129.77,7.91106157]
[1744524204983,13.91128506,129.84,129.79,13.91128506]
[1744524205877,13.91128506,129.86,129.81,13.91128506]
[1744524206086,13.91128506,129.88,129.82,13.91128506]
[1744524206388,13.91128506,129.89,129.83,13.91128506]
[1744524206564,13.91128506,129.89,129.84,13.91128506]
[1744524206763,81.0,129.9,129.85,7.7011]